[Event "*** SCC Grand Prix: Titled Tuesday Blitz"]
[Site "Chess.com"]
[Date "2020.07.14"]
[Round "10"]
[White "Kaua18"]
[Black "Michaelson_11"]
[Result "0-1"]
[WhiteElo "2265"]
[BlackElo "2135"]
[TimeControl "180+1"]
[EndTime "11:59:35 PDT"]
[Termination "Michaelson_11 won on time"]

1. c4 {[%clk 0:03:00.2]} 1... e5 {[%clk 0:02:58.6]} 2. Nc3 {[%clk 0:02:58.9]}
2... Nf6 {[%clk 0:02:57.9]} 3. Nf3 {[%clk 0:02:59.2]} 3... Nc6 {[%clk
0:02:57.2]} 4. g3 {[%clk 0:02:58.8]} 4... Bb4 {[%clk 0:02:54.3]} 5. Bg2 {[%clk
0:02:49.5]} 5... d6 {[%clk 0:02:50.1]} 6. Qc2 {[%clk 0:02:47.6]} 6... Bxc3
{[%clk 0:02:47.5]} 7. bxc3 {[%clk 0:02:45.5]} 7... O-O {[%clk 0:02:48.4]} 8. O-O
{[%clk 0:02:45.3]} 8... h6 {[%clk 0:02:40.5]} 9. d4 {[%clk 0:02:40]} 9... Qe7
{[%clk 0:02:30.1]} 10. Ba3 {[%clk 0:02:29]} 10... e4 {[%clk 0:02:27.5]} 11. Ne1
{[%clk 0:02:20.2]} 11... Bf5 {[%clk 0:02:22.9]} 12. e3 {[%clk 0:02:19.8]} 12...
Na5 {[%clk 0:02:14.3]} 13. c5 {[%clk 0:02:13.1]} 13... Rfc8 {[%clk 0:02:08.6]}
14. Qa4 {[%clk 0:02:10.3]} 14... b6 {[%clk 0:01:59.8]} 15. Nc2 {[%clk
0:01:54.3]} 15... a6 {[%clk 0:01:54.6]} 16. c4 {[%clk 0:01:31]} 16... dxc5
{[%clk 0:01:46]} 17. Bxc5 {[%clk 0:01:21.2]} 17... bxc5 {[%clk 0:01:44.3]} 18.
Qxa5 {[%clk 0:01:20.9]} 18... cxd4 {[%clk 0:01:43.4]} 19. Qxf5 {[%clk
0:01:08.6]} 19... d3 {[%clk 0:01:41.9]} 20. Nd4 {[%clk 0:01:07.9]} 20... g6
{[%clk 0:01:31.2]} 21. Qa5 {[%clk 0:01:02.6]} 21... c5 {[%clk 0:01:26.6]} 22.
Nb3 {[%clk 0:00:59.6]} 22... Ra7 {[%clk 0:01:11.9]} 23. Rfd1 {[%clk 0:00:57.1]}
23... Nd7 {[%clk 0:01:03.1]} 24. Bh3 {[%clk 0:00:50.2]} 24... f5 {[%clk
0:00:56.5]} 25. Qc3 {[%clk 0:00:42]} 25... Qe5 {[%clk 0:00:50.9]} 26. Qxe5
{[%clk 0:00:25.4]} 26... Nxe5 {[%clk 0:00:51.8]} 27. Rac1 {[%clk 0:00:25.8]}
27... Rb7 {[%clk 0:00:41.5]} 28. Kf1 {[%clk 0:00:20.5]} 28... Rb4 {[%clk
0:00:40.4]} 29. Nd2 {[%clk 0:00:15]} 29... Rb2 {[%clk 0:00:37.3]} 30. Nxe4
{[%clk 0:00:14.5]} 30... Rxa2 {[%clk 0:00:29.1]} 31. Nc3 {[%clk 0:00:09.9]}
31... Ra3 {[%clk 0:00:20.8]} 32. Nd5 {[%clk 0:00:10.2]} 32... Kf7 {[%clk
0:00:18]} 33. f4 {[%clk 0:00:10.6]} 33... Nc6 {[%clk 0:00:15.5]} 34. Rc3 {[%clk
0:00:10.5]} 34... Rxc3 {[%clk 0:00:13.2]} 35. Nxc3 {[%clk 0:00:11.4]} 35... Nb4
{[%clk 0:00:14.1]} 36. Bg2 {[%clk 0:00:10]} 36... Re8 {[%clk 0:00:13]} 37. Nd5
{[%clk 0:00:08.9]} 37... Nc2 {[%clk 0:00:07]} 38. Rxd3 {[%clk 0:00:07.7]} 38...
Rb8 {[%clk 0:00:05.5]} 39. Nc3 {[%clk 0:00:07.4]} 39... Rb3 {[%clk 0:00:05]} 40.
Bd5+ {[%clk 0:00:06.5]} 40... Kf6 {[%clk 0:00:04.9]} 41. Kf2 {[%clk 0:00:04.8]}
41... Nb4 {[%clk 0:00:04.2]} 42. Rd2 {[%clk 0:00:02.6]} 42... Rxc3 {[%clk
0:00:04.2]} 43. Rb2 {[%clk 0:00:02.9]} 43... Nd3+ {[%clk 0:00:03.8]} 44. Ke2
{[%clk 0:00:03.6]} 44... Nxb2 {[%clk 0:00:04.7]} 45. Kd2 {[%clk 0:00:04.5]}
45... Rb3 {[%clk 0:00:04.6]} 46. Kc2 {[%clk 0:00:04.6]} 46... Rb6 {[%clk
0:00:05]} 47. e4 {[%clk 0:00:05]} 47... fxe4 {[%clk 0:00:04.9]} 48. Bxe4 {[%clk
0:00:05.9]} 48... a5 {[%clk 0:00:05.8]} 49. Bd5 {[%clk 0:00:06.8]} 49... a4
{[%clk 0:00:06.2]} 50. Kb1 {[%clk 0:00:05.5]} 50... a3 {[%clk 0:00:06.5]} 51.
Ka2 {[%clk 0:00:06.4]} 51... Ra6 {[%clk 0:00:06.1]} 52. Bg8 {[%clk 0:00:04.5]}
52... Nd3 {[%clk 0:00:05.9]} 53. Bd5 {[%clk 0:00:02.4]} 53... Nb4+ {[%clk
0:00:06.8]} 54. Kb3 {[%clk 0:00:03]} 54... a2 {[%clk 0:00:07]} 0-1

[Event "*** SCC Grand Prix: Titled Tuesday Blitz"]
[Site "Chess.com"]
[Date "2020.07.14"]
[Round "10"]
[White "EvgenyT"]
[Black "kuban1991"]
[Result "1/2-1/2"]
[WhiteElo "2909"]
[BlackElo "2780"]
[TimeControl "180+1"]
[EndTime "11:59:36 PDT"]
[Termination "Game drawn by repetition"]

1. c4 {[%clk 0:03:00.9]} 1... g6 {[%clk 0:02:59.3]} 2. g3 {[%clk 0:02:58.5]}
2... Bg7 {[%clk 0:03:00.2]} 3. Bg2 {[%clk 0:02:58.6]} 3... c5 {[%clk 0:03:00.8]}
4. Nc3 {[%clk 0:02:57.1]} 4... Nc6 {[%clk 0:03:00.9]} 5. Rb1 {[%clk 0:02:57.2]}
5... e6 {[%clk 0:03:00]} 6. a3 {[%clk 0:02:56.2]} 6... Nge7 {[%clk 0:02:58.1]}
7. b4 {[%clk 0:02:53.9]} 7... d6 {[%clk 0:02:57.1]} 8. Nf3 {[%clk 0:02:49.8]}
8... O-O {[%clk 0:02:56]} 9. O-O {[%clk 0:02:49.5]} 9... b6 {[%clk 0:02:53.3]}
10. Qb3 {[%clk 0:02:30.2]} 10... Bb7 {[%clk 0:02:52.2]} 11. Bb2 {[%clk
0:02:29.5]} 11... Qd7 {[%clk 0:02:49]} 12. e3 {[%clk 0:02:26.6]} 12... Rac8
{[%clk 0:02:43.3]} 13. Rbc1 {[%clk 0:02:24.9]} 13... h6 {[%clk 0:02:42.3]} 14.
Rfd1 {[%clk 0:02:24.6]} 14... g5 {[%clk 0:02:30.2]} 15. h3 {[%clk 0:02:08.2]}
15... e5 {[%clk 0:01:58.8]} 16. d3 {[%clk 0:01:39.4]} 16... f5 {[%clk 0:01:58]}
17. Nd5 {[%clk 0:01:39.1]} 17... Nxd5 {[%clk 0:01:54.8]} 18. cxd5 {[%clk
0:01:38.9]} 18... Ne7 {[%clk 0:01:55.4]} 19. Nd2 {[%clk 0:01:38.6]} 19... h5
{[%clk 0:01:23.4]} 20. bxc5 {[%clk 0:01:31.5]} 20... bxc5 {[%clk 0:01:24.3]} 21.
Nc4 {[%clk 0:01:20.4]} 21... Kh8 {[%clk 0:01:24.2]} 22. e4 {[%clk 0:01:17.3]}
22... f4 {[%clk 0:01:22.4]} 23. Bc3 {[%clk 0:01:15.7]} 23... Ng6 {[%clk
0:01:09.1]} 24. Rb1 {[%clk 0:01:14]} 24... Ba6 {[%clk 0:01:05]} 25. Rd2 {[%clk
0:01:09.3]} 25... h4 {[%clk 0:00:34.9]} 26. Qd1 {[%clk 0:01:06]} 26... g4 {[%clk
0:00:19.7]} 27. Qxg4 {[%clk 0:00:59.9]} 27... Qxg4 {[%clk 0:00:19.4]} 28. hxg4
{[%clk 0:01:00.1]} 28... Bxc4 {[%clk 0:00:20]} 29. dxc4 {[%clk 0:01:00.1]} 29...
fxg3 {[%clk 0:00:19.8]} 30. fxg3 {[%clk 0:00:59]} 30... Bh6 {[%clk 0:00:20.1]}
31. Rd3 {[%clk 0:00:57.9]} 31... hxg3 {[%clk 0:00:17.5]} 32. g5 {[%clk 0:00:56]}
32... Nf4 {[%clk 0:00:14]} 33. Rxg3 {[%clk 0:00:40.3]} 33... Ne2+ {[%clk
0:00:13.7]} 34. Kh2 {[%clk 0:00:40.6]} 34... Nxg3 {[%clk 0:00:14.1]} 35. gxh6
{[%clk 0:00:40.8]} 35... Ne2 {[%clk 0:00:12.6]} 36. Bd2 {[%clk 0:00:36.3]} 36...
Rb8 {[%clk 0:00:11.3]} 37. Rxb8 {[%clk 0:00:29.5]} 37... Rxb8 {[%clk 0:00:12.2]}
38. Bg5 {[%clk 0:00:29.9]} 38... Nf4 {[%clk 0:00:07.3]} 39. Bf3 {[%clk
0:00:26.9]} 39... Rb2+ {[%clk 0:00:05.4]} 40. Kg3 {[%clk 0:00:26.2]} 40... Rb3
{[%clk 0:00:05.6]} 41. Kg4 {[%clk 0:00:24.8]} 41... Kh7 {[%clk 0:00:04]} 42. Be7
{[%clk 0:00:24.6]} 42... Rb6 {[%clk 0:00:04]} 43. Bf8 {[%clk 0:00:23]} 43... Ng6
{[%clk 0:00:02.7]} 44. Bg7 {[%clk 0:00:21.8]} 44... Rb1 {[%clk 0:00:02.9]} 45.
Kg5 {[%clk 0:00:20.5]} 45... Rf1 {[%clk 0:00:02.6]} 46. Bg4 {[%clk 0:00:20.4]}
46... Rg1 {[%clk 0:00:02.7]} 47. a4 {[%clk 0:00:20.2]} 47... a5 {[%clk
0:00:02.4]} 48. Bf6 {[%clk 0:00:19.9]} 48... Rf1 {[%clk 0:00:02.4]} 49. Bf5
{[%clk 0:00:19.8]} 49... Rg1+ {[%clk 0:00:02.5]} 50. Kh5 {[%clk 0:00:17.2]}
50... Rh1+ {[%clk 0:00:02.4]} 51. Kg5 {[%clk 0:00:16.8]} 51... Rg1+ {[%clk
0:00:03.3]} 52. Kh5 {[%clk 0:00:16.3]} 52... Rh1+ {[%clk 0:00:03.7]} 53. Kg5
{[%clk 0:00:12.1]} 53... Rg1+ {[%clk 0:00:03.7]} 1/2-1/2

[Event "*** SCC Grand Prix: Titled Tuesday Blitz"]
[Site "Chess.com"]
[Date "2020.07.14"]
[Round "10"]
[White "WiktoriaPOL"]
[Black "Gandrade2"]
[Result "1-0"]
[WhiteElo "1933"]
[BlackElo "2110"]
[TimeControl "180+1"]
[EndTime "11:59:36 PDT"]
[Termination "WiktoriaPOL won by checkmate"]

1. c4 {[%clk 0:03:00.9]} 1... e5 {[%clk 0:02:56]} 2. Nc3 {[%clk 0:03:00.5]} 2...
Nc6 {[%clk 0:02:54]} 3. Nf3 {[%clk 0:02:59.9]} 3... f5 {[%clk 0:02:53.7]} 4. g3
{[%clk 0:02:57.5]} 4... Bb4 {[%clk 0:02:51.7]} 5. d4 {[%clk 0:02:54.2]} 5... e4
{[%clk 0:02:37.4]} 6. Nh4 {[%clk 0:02:53]} 6... d6 {[%clk 0:02:31.7]} 7. Ng2
{[%clk 0:02:52.7]} 7... Nf6 {[%clk 0:02:30]} 8. h4 {[%clk 0:02:52.4]} 8... O-O
{[%clk 0:02:19.2]} 9. Nf4 {[%clk 0:02:50]} 9... Qe8 {[%clk 0:02:08.4]} 10. Bg2
{[%clk 0:02:42.9]} 10... Qf7 {[%clk 0:02:01.8]} 11. d5 {[%clk 0:02:20.6]} 11...
Ne5 {[%clk 0:01:55.3]} 12. Qa4 {[%clk 0:02:07.5]} 12... Bxc3+ {[%clk 0:01:53.8]}
13. bxc3 {[%clk 0:02:08.4]} 13... b6 {[%clk 0:01:50.1]} 14. O-O {[%clk
0:02:04.5]} 14... Ng6 {[%clk 0:01:41.6]} 15. Qb4 {[%clk 0:01:55.4]} 15... Nxf4
{[%clk 0:01:29.7]} 16. Bxf4 {[%clk 0:01:53.7]} 16... Nd7 {[%clk 0:01:30.2]} 17.
a4 {[%clk 0:01:45.7]} 17... a5 {[%clk 0:01:28.2]} 18. Qb5 {[%clk 0:01:42.9]}
18... Ba6 {[%clk 0:01:27.7]} 19. Qb3 {[%clk 0:01:36.1]} 19... Nc5 {[%clk
0:01:22.5]} 20. Qa2 {[%clk 0:01:32.4]} 20... Qf6 {[%clk 0:01:22.2]} 21. Rac1
{[%clk 0:01:26.4]} 21... Rae8 {[%clk 0:01:14.3]} 22. Bg5 {[%clk 0:01:26.3]}
22... Qf7 {[%clk 0:01:12.3]} 23. Rfd1 {[%clk 0:01:19]} 23... Qd7 {[%clk
0:01:11.1]} 24. Ra1 {[%clk 0:01:16.9]} 24... h6 {[%clk 0:01:06.2]} 25. Be3
{[%clk 0:01:15.6]} 25... Nb7 {[%clk 0:01:01.9]} 26. Rab1 {[%clk 0:01:09.4]}
26... Nd8 {[%clk 0:00:57.7]} 27. Qd2 {[%clk 0:00:47.4]} 27... Qxa4 {[%clk
0:00:52.7]} 28. Ra1 {[%clk 0:00:43.9]} 28... Qd7 {[%clk 0:00:41.4]} 29. c5
{[%clk 0:00:39.2]} 29... Nf7 {[%clk 0:00:34.7]} 30. cxb6 {[%clk 0:00:38.1]}
30... cxb6 {[%clk 0:00:31.2]} 31. Bxb6 {[%clk 0:00:38.6]} 31... Ne5 {[%clk
0:00:29.2]} 32. Bxa5 {[%clk 0:00:34.4]} 32... Qb5 {[%clk 0:00:25.3]} 33. Qd4
{[%clk 0:00:29]} 33... Qxe2 {[%clk 0:00:22]} 34. Bb4 {[%clk 0:00:23]} 34... Rd8
{[%clk 0:00:14.7]} 35. Bxd6 {[%clk 0:00:19]} 35... Nf3+ {[%clk 0:00:12.6]} 36.
Bxf3 {[%clk 0:00:18.1]} 36... Qxf3 {[%clk 0:00:13.1]} 37. Bxf8 {[%clk
0:00:17.2]} 37... Rxf8 {[%clk 0:00:14]} 38. Qe3 {[%clk 0:00:13.1]} 38... Qe2
{[%clk 0:00:10]} 39. Qxe2 {[%clk 0:00:11.9]} 39... Bxe2 {[%clk 0:00:10.9]} 40.
Rd2 {[%clk 0:00:12]} 40... Bd3 {[%clk 0:00:11.1]} 41. Ra4 {[%clk 0:00:09.8]}
41... f4 {[%clk 0:00:11.8]} 42. g4 {[%clk 0:00:07.7]} 42... f3 {[%clk
0:00:11.9]} 43. Kh2 {[%clk 0:00:07.6]} 43... Rb8 {[%clk 0:00:12]} 44. Kg3 {[%clk
0:00:07]} 44... Rb1 {[%clk 0:00:11.9]} 45. c4 {[%clk 0:00:05.5]} 45... g5 {[%clk
0:00:11.1]} 46. hxg5 {[%clk 0:00:03.2]} 46... hxg5 {[%clk 0:00:12]} 47. Ra8+
{[%clk 0:00:01.9]} 47... Kg7 {[%clk 0:00:11.6]} 48. d6 {[%clk 0:00:02.3]} 48...
Rg1+ {[%clk 0:00:12]} 49. Kh2 {[%clk 0:00:02.5]} 49... Rg2+ {[%clk 0:00:12.7]}
50. Kh1 {[%clk 0:00:02.2]} 50... Rxg4 {[%clk 0:00:11.3]} 51. d7 {[%clk
0:00:02.5]} 51... Rh4+ {[%clk 0:00:11.9]} 52. Kg1 {[%clk 0:00:02.7]} 52... Rg4+
{[%clk 0:00:11.1]} 53. Kh2 {[%clk 0:00:02.4]} 53... Rh4+ {[%clk 0:00:11.5]} 54.
Kg3 {[%clk 0:00:02.7]} 54... Bf1 {[%clk 0:00:10.2]} 55. d8=Q {[%clk 0:00:02.4]}
55... Rh3+ {[%clk 0:00:10.3]} 56. Kg4 {[%clk 0:00:02.8]} 56... Rh4+ {[%clk
0:00:09.1]} 57. Kxg5 {[%clk 0:00:02.8]} 57... Rh2 {[%clk 0:00:08.6]} 58. Rd7#
{[%clk 0:00:02.9]} 1-0

[Event "*** SCC Grand Prix: Titled Tuesday Blitz"]
[Site "Chess.com"]
[Date "2020.07.14"]
[Round "10"]
[White "DonBroca"]
[Black "LimaRR"]
[Result "1-0"]
[WhiteElo "2099"]
[BlackElo "2051"]
[TimeControl "180+1"]
[EndTime "11:59:38 PDT"]
[Termination "DonBroca won on time"]

1. e4 {[%clk 0:02:57]} 1... c5 {[%clk 0:02:59.8]} 2. Nf3 {[%clk 0:02:56.7]} 2...
d6 {[%clk 0:02:59.9]} 3. d4 {[%clk 0:02:56.6]} 3... cxd4 {[%clk 0:03:00.8]} 4.
Nxd4 {[%clk 0:02:57.5]} 4... Nf6 {[%clk 0:03:01.3]} 5. Nc3 {[%clk 0:02:56.9]}
5... a6 {[%clk 0:03:01.5]} 6. Bg5 {[%clk 0:02:56.9]} 6... e6 {[%clk 0:03:01.6]}
7. f4 {[%clk 0:02:57.2]} 7... Be7 {[%clk 0:03:01.9]} 8. Qf3 {[%clk 0:02:57.2]}
8... Qc7 {[%clk 0:03:02.2]} 9. O-O-O {[%clk 0:02:57]} 9... Nbd7 {[%clk
0:03:02.4]} 10. g4 {[%clk 0:02:54.5]} 10... h6 {[%clk 0:03:02.2]} 11. Bh4 {[%clk
0:02:53.1]} 11... g5 {[%clk 0:03:01.6]} 12. fxg5 {[%clk 0:02:45.9]} 12... Ne5
{[%clk 0:03:00.9]} 13. Qg3 {[%clk 0:02:26.8]} 13... Nfxg4 {[%clk 0:02:45.5]} 14.
gxh6 {[%clk 0:01:44.6]} 14... Bxh4 {[%clk 0:02:42]} 15. Qxh4 {[%clk 0:01:44.8]}
15... Rxh6 {[%clk 0:02:40.3]} 16. Qg3 {[%clk 0:01:42.7]} 16... Bd7 {[%clk
0:02:22.2]} 17. h3 {[%clk 0:01:40.7]} 17... O-O-O {[%clk 0:02:16.4]} 18. Be2
{[%clk 0:01:30.8]} 18... Rdh8 {[%clk 0:02:02.4]} 19. Bxg4 {[%clk 0:01:23.2]}
19... Nc4 {[%clk 0:01:58.8]} 20. Nb3 {[%clk 0:00:58]} 20... Rg6 {[%clk
0:01:38.6]} 21. Qf2 {[%clk 0:00:43.8]} 21... Be8 {[%clk 0:01:26.8]} 22. Nd5
{[%clk 0:00:37.1]} 22... Qd8 {[%clk 0:01:16.6]} 23. Nf4 {[%clk 0:00:32.6]} 23...
Rf6 {[%clk 0:01:13.4]} 24. Qh2 {[%clk 0:00:28.1]} 24... Ne3 {[%clk 0:01:08.5]}
25. Qd2 {[%clk 0:00:16.1]} 25... Nxd1 {[%clk 0:01:04.6]} 26. Rxd1 {[%clk
0:00:17]} 26... Bc6 {[%clk 0:00:54.1]} 27. Nh5 {[%clk 0:00:09.7]} 27... Rfh6
{[%clk 0:00:48.8]} 28. Ng3 {[%clk 0:00:09.2]} 28... Kc7 {[%clk 0:00:30.4]} 29.
e5 {[%clk 0:00:07.6]} 29... d5 {[%clk 0:00:29.1]} 30. Nd4 {[%clk 0:00:06.4]}
30... Bd7 {[%clk 0:00:15.9]} 31. Qc3+ {[%clk 0:00:06.7]} 31... Kb8 {[%clk
0:00:16.1]} 32. Nf3 {[%clk 0:00:06.8]} 32... Qb6 {[%clk 0:00:13.7]} 33. Qa3
{[%clk 0:00:05.9]} 33... Rc8 {[%clk 0:00:12.2]} 34. Qd6+ {[%clk 0:00:05.1]}
34... Qxd6 {[%clk 0:00:12.5]} 35. exd6 {[%clk 0:00:06]} 35... f5 {[%clk
0:00:12.5]} 36. Ne5 {[%clk 0:00:02.9]} 36... fxg4 {[%clk 0:00:10.7]} 37. Nxd7+
{[%clk 0:00:02.6]} 37... Ka7 {[%clk 0:00:10.9]} 38. hxg4 {[%clk 0:00:03.5]}
38... Rd8 {[%clk 0:00:10.5]} 39. Ne5 {[%clk 0:00:04.1]} 39... Rh3 {[%clk
0:00:08.8]} 40. Nf7 {[%clk 0:00:04.6]} 40... Rd7 {[%clk 0:00:07.9]} 41. Ne5
{[%clk 0:00:04.7]} 41... Rxd6 {[%clk 0:00:07.8]} 42. Nh5 {[%clk 0:00:05.3]}
42... Re3 {[%clk 0:00:06.6]} 43. Nd3 {[%clk 0:00:04.2]} 43... e5 {[%clk
0:00:06.2]} 44. g5 {[%clk 0:00:02.9]} 44... e4 {[%clk 0:00:05.6]} 45. Ndf4
{[%clk 0:00:03.2]} 45... Rf3 {[%clk 0:00:04.8]} 46. Nxd5 {[%clk 0:00:03.6]}
46... Rxd5 {[%clk 0:00:04.4]} 47. Rxd5 {[%clk 0:00:03.2]} 47... e3 {[%clk
0:00:04.6]} 48. Kd1 {[%clk 0:00:03.8]} 48... Rf2 {[%clk 0:00:01.5]} 49. Nf6
{[%clk 0:00:03.3]} 1-0

[Event "*** SCC Grand Prix: Titled Tuesday Blitz"]
[Site "Chess.com"]
[Date "2020.07.14"]
[Round "10"]
[White "vesalhamedinia"]
[Black "teacher4chess"]
[Result "1-0"]
[WhiteElo "2188"]
[BlackElo "2020"]
[TimeControl "180+1"]
[EndTime "11:59:39 PDT"]
[Termination "vesalhamedinia won on time"]

1. d4 {[%clk 0:03:00]} 1... d5 {[%clk 0:02:58.3]} 2. c4 {[%clk 0:03:00.2]} 2...
c6 {[%clk 0:02:42.8]} 3. cxd5 {[%clk 0:02:59.9]} 3... cxd5 {[%clk 0:02:42.4]} 4.
Nc3 {[%clk 0:03:00.3]} 4... Nf6 {[%clk 0:02:42.5]} 5. Bf4 {[%clk 0:02:59.6]}
5... a6 {[%clk 0:02:40.6]} 6. e3 {[%clk 0:02:59.7]} 6... Nc6 {[%clk 0:02:40.5]}
7. Bd3 {[%clk 0:03:00.2]} 7... Bg4 {[%clk 0:02:35.6]} 8. Qb3 {[%clk 0:02:59.4]}
8... Ra7 {[%clk 0:02:34.6]} 9. Nf3 {[%clk 0:02:55]} 9... Bxf3 {[%clk 0:02:30.8]}
10. gxf3 {[%clk 0:02:55.1]} 10... e6 {[%clk 0:02:30.9]} 11. O-O {[%clk
0:02:48.7]} 11... Bd6 {[%clk 0:02:27.8]} 12. Bg3 {[%clk 0:02:48.2]} 12... O-O
{[%clk 0:02:23]} 13. Kh1 {[%clk 0:02:46.5]} 13... Nh5 {[%clk 0:02:09.3]} 14. Ne2
{[%clk 0:02:34.3]} 14... g6 {[%clk 0:01:46.6]} 15. a3 {[%clk 0:02:28.6]} 15...
b5 {[%clk 0:01:25.4]} 16. Rac1 {[%clk 0:02:17.8]} 16... Na5 {[%clk 0:01:24.2]}
17. Qc2 {[%clk 0:02:16.5]} 17... Rc7 {[%clk 0:01:18.1]} 18. Qd1 {[%clk
0:01:52.2]} 18... Nc4 {[%clk 0:01:13.2]} 19. Bxc4 {[%clk 0:01:52.2]} 19... bxc4
{[%clk 0:01:08.1]} 20. Qa4 {[%clk 0:01:51.5]} 20... Rb7 {[%clk 0:00:46.1]} 21.
Rc2 {[%clk 0:01:46.7]} 21... Bxg3 {[%clk 0:00:37.4]} 22. hxg3 {[%clk 0:01:46.5]}
22... Qb6 {[%clk 0:00:36.1]} 23. Rd2 {[%clk 0:01:31.1]} 23... Rfb8 {[%clk
0:00:34.1]} 24. Rc1 {[%clk 0:01:19]} 24... Qb5 {[%clk 0:00:26.2]} 25. Qd1 {[%clk
0:01:16.7]} 25... Qd7 {[%clk 0:00:20.3]} 26. Rb1 {[%clk 0:01:11.4]} 26... Rb3
{[%clk 0:00:18.3]} 27. Kg2 {[%clk 0:01:11.5]} 27... R8b6 {[%clk 0:00:15.5]} 28.
Nc1 {[%clk 0:01:11.4]} 28... R3b5 {[%clk 0:00:15]} 29. Na2 {[%clk 0:01:11]}
29... Qb7 {[%clk 0:00:13.6]} 30. Qc1 {[%clk 0:01:09.5]} 30... Rb3 {[%clk
0:00:13.2]} 31. Nc3 {[%clk 0:01:08.6]} 31... Ng7 {[%clk 0:00:10.3]} 32. Na4
{[%clk 0:01:08.7]} 32... R6b5 {[%clk 0:00:10.3]} 33. Nc5 {[%clk 0:01:09.1]}
33... Rxc5 {[%clk 0:00:08.3]} 34. dxc5 {[%clk 0:01:09.6]} 34... Nf5 {[%clk
0:00:08.6]} 35. Rc2 {[%clk 0:01:06.9]} 35... Qc6 {[%clk 0:00:08]} 36. Rc3 {[%clk
0:01:06]} 36... Rb5 {[%clk 0:00:07.9]} 37. b4 {[%clk 0:01:05.4]} 37... a5 {[%clk
0:00:06.2]} 38. Qc2 {[%clk 0:01:02.6]} 38... axb4 {[%clk 0:00:05.5]} 39. axb4
{[%clk 0:01:03.5]} 39... d4 {[%clk 0:00:03.2]} 40. exd4 {[%clk 0:00:55.7]} 40...
Nxd4 {[%clk 0:00:03.2]} 41. Qe4 {[%clk 0:00:53.1]} 41... Qxe4 {[%clk 0:00:02.9]}
42. fxe4 {[%clk 0:00:53.7]} 42... Nc6 {[%clk 0:00:03.2]} 43. Rxc4 {[%clk
0:00:53.7]} 43... Kf8 {[%clk 0:00:03.1]} 44. f4 {[%clk 0:00:46.7]} 44... Ke7
{[%clk 0:00:02.7]} 45. e5 {[%clk 0:00:46.8]} 45... f6 {[%clk 0:00:02.2]} 46.
exf6+ {[%clk 0:00:46.1]} 46... Kxf6 {[%clk 0:00:02.9]} 47. Re4 {[%clk
0:00:46.8]} 47... Kf5 {[%clk 0:00:02.2]} 48. Kf3 {[%clk 0:00:46.6]} 48... g5
{[%clk 0:00:01.4]} 49. g4+ {[%clk 0:00:46.5]} 1-0

[Event "*** SCC Grand Prix: Titled Tuesday Blitz"]
[Site "Chess.com"]
[Date "2020.07.14"]
[Round "10"]
[White "Alindsay211"]
[Black "Oligan22"]
[Result "1/2-1/2"]
[WhiteElo "2317"]
[BlackElo "2454"]
[TimeControl "180+1"]
[EndTime "11:59:43 PDT"]
[Termination "Game drawn - insufficient material"]

1. e4 {[%clk 0:03:00.9]} 1... c5 {[%clk 0:02:59.9]} 2. Nf3 {[%clk 0:03:00.9]}
2... e6 {[%clk 0:03:00.3]} 3. d4 {[%clk 0:03:01]} 3... cxd4 {[%clk 0:03:01.2]}
4. Nxd4 {[%clk 0:03:01.5]} 4... Nc6 {[%clk 0:03:01.7]} 5. Nc3 {[%clk 0:03:00.9]}
5... Qc7 {[%clk 0:03:01.9]} 6. Be3 {[%clk 0:03:01.2]} 6... a6 {[%clk 0:03:01.9]}
7. Qf3 {[%clk 0:03:01.4]} 7... Nf6 {[%clk 0:03:00.6]} 8. O-O-O {[%clk
0:03:00.2]} 8... Rb8 {[%clk 0:03:01]} 9. Qg3 {[%clk 0:02:42]} 9... Qxg3 {[%clk
0:02:45.9]} 10. hxg3 {[%clk 0:02:40.9]} 10... Ng4 {[%clk 0:02:42.5]} 11. Nxc6
{[%clk 0:01:47.9]} 11... bxc6 {[%clk 0:02:39.3]} 12. Rd3 {[%clk 0:01:21.3]}
12... Nxe3 {[%clk 0:02:24.4]} 13. Rxe3 {[%clk 0:01:22.2]} 13... Bc5 {[%clk
0:02:24.5]} 14. Re2 {[%clk 0:01:22]} 14... a5 {[%clk 0:02:11.9]} 15. Rd2 {[%clk
0:01:22.2]} 15... d5 {[%clk 0:02:03.3]} 16. Bd3 {[%clk 0:01:14.5]} 16... h6
{[%clk 0:01:39.9]} 17. g4 {[%clk 0:01:14.2]} 17... Be7 {[%clk 0:01:36.4]} 18. f4
{[%clk 0:01:07.6]} 18... d4 {[%clk 0:01:18]} 19. Ne2 {[%clk 0:01:06.8]} 19... e5
{[%clk 0:01:18.3]} 20. fxe5 {[%clk 0:00:48.7]} 20... Bg5 {[%clk 0:01:17.3]} 21.
Nxd4 {[%clk 0:00:49]} 21... c5 {[%clk 0:01:07.2]} 22. Nc6 {[%clk 0:00:40.2]}
22... Bxd2+ {[%clk 0:01:02.9]} 23. Kxd2 {[%clk 0:00:41.1]} 23... Rxb2 {[%clk
0:01:02.9]} 24. Nxa5 {[%clk 0:00:41.7]} 24... Rxa2 {[%clk 0:00:54.5]} 25. Nc4
{[%clk 0:00:42.2]} 25... Bxg4 {[%clk 0:00:48.1]} 26. Nd6+ {[%clk 0:00:42.5]}
26... Ke7 {[%clk 0:00:47.8]} 27. Rb1 {[%clk 0:00:40]} 27... Rd8 {[%clk
0:00:44.2]} 28. Rb5 {[%clk 0:00:33.5]} 28... f6 {[%clk 0:00:33]} 29. Rxc5 {[%clk
0:00:30.6]} 29... fxe5 {[%clk 0:00:32.7]} 30. Nc4 {[%clk 0:00:31.2]} 30... Kf6
{[%clk 0:00:23.2]} 31. Nxe5 {[%clk 0:00:26.5]} 31... Be6 {[%clk 0:00:22.7]} 32.
Nf3 {[%clk 0:00:20]} 32... Rc8 {[%clk 0:00:22.6]} 33. Rb5 {[%clk 0:00:09.9]}
33... Bc4 {[%clk 0:00:22.4]} 34. Rb6+ {[%clk 0:00:10.5]} 34... Ke7 {[%clk
0:00:21.7]} 35. Ke3 {[%clk 0:00:11]} 35... Bxd3 {[%clk 0:00:21.2]} 36. cxd3
{[%clk 0:00:11.9]} 36... Rxg2 {[%clk 0:00:21.1]} 37. Rb7+ {[%clk 0:00:12.4]}
37... Kf6 {[%clk 0:00:16.7]} 38. Rb6+ {[%clk 0:00:10.2]} 38... Kf7 {[%clk
0:00:15.7]} 39. Rb7+ {[%clk 0:00:10]} 39... Kg8 {[%clk 0:00:16.1]} 40. Nd4
{[%clk 0:00:08.2]} 40... h5 {[%clk 0:00:15.6]} 41. Nf5 {[%clk 0:00:08.2]} 41...
Rf8 {[%clk 0:00:12.4]} 42. Kf3 {[%clk 0:00:07.9]} 42... Rg5 {[%clk 0:00:11.4]}
43. Kf4 {[%clk 0:00:06.2]} 43... Rg1 {[%clk 0:00:11.5]} 44. d4 {[%clk 0:00:05]}
44... g6 {[%clk 0:00:11.9]} 45. Rg7+ {[%clk 0:00:04.2]} 45... Kh8 {[%clk
0:00:12]} 46. Ke3 {[%clk 0:00:02.9]} 46... gxf5 {[%clk 0:00:12.4]} 47. Rxg1
{[%clk 0:00:02.4]} 47... fxe4 {[%clk 0:00:12.9]} 48. Kxe4 {[%clk 0:00:03]} 48...
Re8+ {[%clk 0:00:13.3]} 49. Kf5 {[%clk 0:00:03.5]} 49... Rf8+ {[%clk 0:00:13.5]}
50. Ke6 {[%clk 0:00:02.9]} 50... Re8+ {[%clk 0:00:13.5]} 51. Kd7 {[%clk
0:00:03]} 51... Re2 {[%clk 0:00:11.6]} 52. d5 {[%clk 0:00:03.5]} 52... Kh7
{[%clk 0:00:10.3]} 53. Rh1 {[%clk 0:00:04]} 53... Kg6 {[%clk 0:00:10.5]} 54. d6
{[%clk 0:00:04.6]} 54... Kf6 {[%clk 0:00:10.2]} 55. Kd8 {[%clk 0:00:05]} 55...
Rd2 {[%clk 0:00:09.6]} 56. d7 {[%clk 0:00:05.7]} 56... Kg5 {[%clk 0:00:08.1]}
57. Re1 {[%clk 0:00:05.2]} 57... h4 {[%clk 0:00:08]} 58. Ke8 {[%clk 0:00:05.7]}
58... h3 {[%clk 0:00:07.5]} 59. d8=Q+ {[%clk 0:00:05.7]} 59... Rxd8+ {[%clk
0:00:07.9]} 60. Kxd8 {[%clk 0:00:06.6]} 60... Kg4 {[%clk 0:00:08.2]} 61. Ke7
{[%clk 0:00:07]} 61... Kg3 {[%clk 0:00:07.7]} 62. Kf6 {[%clk 0:00:07.5]} 62...
h2 {[%clk 0:00:08.3]} 63. Kf5 {[%clk 0:00:07.7]} 63... Kg2 {[%clk 0:00:08.8]}
64. Re2+ {[%clk 0:00:08.3]} 64... Kg1 {[%clk 0:00:08.6]} 65. Rxh2 {[%clk
0:00:09.2]} 65... Kxh2 {[%clk 0:00:08.4]} 1/2-1/2